[Event "Titled Tuesday Blitz November 15 Late 2022"]
[White "Jimenez Almeida, Luis David"]
[Black "Moore, Alex"]
[WhiteFideId "22242244"]
[BlackFideId "30910692"]
[WhiteElo "2158"]
[BlackElo "2111"]
[Result "1-0"]
[Round "02"]
[TimeControl "180+1"]
[Date "2022.11.16"]
[WhiteClock "0:00:40"]
[BlackClock "0:00:10"]

1. e4 {[%clk 0:03:00]}  c6 {[%clk 0:02:59]} 2. Nc3 {[%clk 0:02:59]}  d5 {[%clk 0:02:59]} 3. Qf3 {[%clk 0:02:59]}  dxe4 {[%clk 0:02:51]} 4. Nxe4 {[%clk 0:02:58]}  Nf6 {[%clk 0:02:46]} 5. Bc4 {[%clk 0:02:53]}  e6 {[%clk 0:02:38]} 6. Ne2 {[%clk 0:02:51]}  Nxe4 {[%clk 0:02:30]} 7. Qxe4 {[%clk 0:02:52]}  Nd7 {[%clk 0:02:30]} 8. d4 {[%clk 0:02:49]}  Nf6 {[%clk 0:02:29]} 9. Qf3 {[%clk 0:02:48]}  Be7 {[%clk 0:02:25]} 10. O-O {[%clk 0:02:47]}  O-O {[%clk 0:02:24]} 11. c3 {[%clk 0:02:47]}  Nd5 {[%clk 0:02:03]} 12. Re1 {[%clk 0:02:44]}  b5 {[%clk 0:02:02]} 13. Bd3 {[%clk 0:02:43]}  Bb7 {[%clk 0:01:58]} 14. a4 {[%clk 0:02:38]}  a6 {[%clk 0:01:48]} 15. Qh3 {[%clk 0:02:35]}  g6 {[%clk 0:01:44]} 16. Bh6 {[%clk 0:02:31]}  Re8 {[%clk 0:01:42]} 17. Ng3 {[%clk 0:02:28]}  bxa4 {[%clk 0:01:03]} 18. Nh5 {[%clk 0:02:19]}  Bg5 {[%clk 0:00:42]} 19. Ng7 {[%clk 0:01:41]}  Nf4 {[%clk 0:00:30]} 20. Qf3 {[%clk 0:01:35]}  Bxh6 {[%clk 0:00:16]} 21. Nxe8 {[%clk 0:01:33]}  Qxe8 {[%clk 0:00:17]} 22. Be4 {[%clk 0:01:29]}  Qd7 {[%clk 0:00:16]} 23. Rxa4 {[%clk 0:01:25]}  Nd5 {[%clk 0:00:16]} 24. Raa1 {[%clk 0:01:22]}  Bg7 {[%clk 0:00:15]} 25. h4 {[%clk 0:01:21]}  h5 {[%clk 0:00:14]} 26. Rad1 {[%clk 0:01:16]}  Nf6 {[%clk 0:00:14]} 27. Bc2 {[%clk 0:01:13]}  c5 {[%clk 0:00:14]} 28. Qg3 {[%clk 0:01:09]}  cxd4 {[%clk 0:00:13]} 29. Rxd4 {[%clk 0:01:10]}  Qc6 {[%clk 0:00:11]} 30. Red1 {[%clk 0:01:07]}  Nd5 {[%clk 0:00:11]} 31. R4d2 {[%clk 0:01:02]}  Qb6 {[%clk 0:00:10]} 32. Be4 {[%clk 0:01:00]}  Nf6 {[%clk 0:00:10]} 33. Bb1 {[%clk 0:00:56]}  Ne4 {[%clk 0:00:09]} 34. Bxe4 {[%clk 0:00:55]}  Bxe4 {[%clk 0:00:10]} 35. Qf4 {[%clk 0:00:50]}  Bf5 {[%clk 0:00:10]} 36. Kh1 {[%clk 0:00:44]}  Qd8 {[%clk 0:00:10]} 37. Rxd8+ {[%clk 0:00:40]} 1-0


[Site "https://www.chess.com"]

[Event "Titled Tuesday Blitz November 15 Late 2022"]
[White "Kamsky, Gata"]
[Black "Domingo Nunez, Alejandro"]
[WhiteFideId "2000024"]
[BlackFideId "22245561"]
[WhiteElo "2666"]
[BlackElo "2242"]
[Result "0-1"]
[Round "02"]
[TimeControl "180+1"]
[Date "2022.11.16"]
[WhiteClock "0:00:03"]
[BlackClock "0:00:15"]

1. e4 {[%clk 0:03:00]}  g6 {[%clk 0:03:00]} 2. d4 {[%clk 0:02:54]}  Bg7 {[%clk 0:03:01]} 3. c3 {[%clk 0:02:54]}  c6 {[%clk 0:03:01]} 4. f4 {[%clk 0:02:53]}  d5 {[%clk 0:03:01]} 5. e5 {[%clk 0:02:54]}  Nh6 {[%clk 0:03:02]} 6. Nf3 {[%clk 0:02:53]}  O-O {[%clk 0:03:02]} 7. Be2 {[%clk 0:02:51]}  f6 {[%clk 0:03:01]} 8. O-O {[%clk 0:02:50]}  Bg4 {[%clk 0:03:01]} 9. Be3 {[%clk 0:02:49]}  Qb6 {[%clk 0:02:54]} 10. Qb3 {[%clk 0:02:48]}  Nd7 {[%clk 0:02:53]} 11. Bf2 {[%clk 0:02:39]}  fxe5 {[%clk 0:02:40]} 12. fxe5 {[%clk 0:02:38]}  Nf5 {[%clk 0:02:28]} 13. h3 {[%clk 0:02:32]}  Bxf3 {[%clk 0:02:28]} 14. Bxf3 {[%clk 0:02:32]}  Bh6 {[%clk 0:02:28]} 15. Re1 {[%clk 0:02:30]}  e6 {[%clk 0:02:25]} 16. Na3 {[%clk 0:02:26]}  Bf4 {[%clk 0:02:19]} 17. Qxb6 {[%clk 0:02:18]}  Nxb6 {[%clk 0:02:07]} 18. Be2 {[%clk 0:02:07]}  Rf7 {[%clk 0:01:59]} 19. Bd3 {[%clk 0:02:06]}  Ng3 {[%clk 0:01:40]} 20. Be3 {[%clk 0:01:59]}  Raf8 {[%clk 0:01:39]} 21. Nc2 {[%clk 0:01:57]}  Nh5 {[%clk 0:01:19]} 22. b3 {[%clk 0:01:51]}  Bg3 {[%clk 0:01:02]} 23. Red1 {[%clk 0:01:28]}  Bf2+ {[%clk 0:00:55]} 24. Bxf2 {[%clk 0:01:25]}  Rxf2 {[%clk 0:00:56]} 25. Ne3 {[%clk 0:01:24]}  Kg7 {[%clk 0:00:47]} 26. a4 {[%clk 0:01:03]}  Nc8 {[%clk 0:00:34]} 27. b4 {[%clk 0:00:59]}  Ne7 {[%clk 0:00:33]} 28. Ng4 {[%clk 0:00:53]}  R2f4 {[%clk 0:00:26]} 29. Rf1 {[%clk 0:00:51]}  Ng8 {[%clk 0:00:25]} 30. Rxf4 {[%clk 0:00:49]}  Nxf4 {[%clk 0:00:24]} 31. Bf1 {[%clk 0:00:50]}  h5 {[%clk 0:00:25]} 32. Nh2 {[%clk 0:00:44]}  g5 {[%clk 0:00:21]} 33. g3 {[%clk 0:00:44]}  Ng6 {[%clk 0:00:21]} 34. a5 {[%clk 0:00:43]}  Nh6 {[%clk 0:00:18]} 35. Bd3 {[%clk 0:00:37]}  Nf5 {[%clk 0:00:17]} 36. Bxf5 {[%clk 0:00:35]}  Rxf5 {[%clk 0:00:18]} 37. Rf1 {[%clk 0:00:33]}  Ne7 {[%clk 0:00:17]} 38. g4 {[%clk 0:00:31]}  Rxf1+ {[%clk 0:00:17]} 39. Kxf1 {[%clk 0:00:30]}  h4 {[%clk 0:00:18]} 40. Nf3 {[%clk 0:00:30]}  Kh6 {[%clk 0:00:18]} 41. Nd2 {[%clk 0:00:27]}  Ng6 {[%clk 0:00:18]} 42. Kg2 {[%clk 0:00:21]}  Nf4+ {[%clk 0:00:18]} 43. Kh2 {[%clk 0:00:22]}  Ne2 {[%clk 0:00:18]} 44. Nb1 {[%clk 0:00:20]}  b6 {[%clk 0:00:18]} 45. a6 {[%clk 0:00:19]}  Kg6 {[%clk 0:00:17]} 46. Kg2 {[%clk 0:00:19]}  Kf7 {[%clk 0:00:17]} 47. Kh2 {[%clk 0:00:17]}  Ke7 {[%clk 0:00:17]} 48. Kg2 {[%clk 0:00:17]}  Kd7 {[%clk 0:00:18]} 49. Kf3 {[%clk 0:00:15]}  Nf4 {[%clk 0:00:18]} 50. Nd2 {[%clk 0:00:13]}  Nxh3 {[%clk 0:00:19]} 51. c4 {[%clk 0:00:09]}  Nf4 {[%clk 0:00:18]} 52. c5 {[%clk 0:00:09]}  b5 {[%clk 0:00:14]} 53. Ke3 {[%clk 0:00:10]}  Ke7 {[%clk 0:00:13]} 54. Nf3 {[%clk 0:00:10]}  Nh3 {[%clk 0:00:12]} 55. Ke2 {[%clk 0:00:10]}  Kf7 {[%clk 0:00:12]} 56. Kf1 {[%clk 0:00:10]}  Kg6 {[%clk 0:00:13]} 57. Ke2 {[%clk 0:00:08]}  Nf4+ {[%clk 0:00:13]} 58. Ke3 {[%clk 0:00:09]}  Kh6 {[%clk 0:00:12]} 59. Nh2 {[%clk 0:00:09]}  Ng6 {[%clk 0:00:12]} 60. Nf3 {[%clk 0:00:08]}  Nf8 {[%clk 0:00:12]} 61. Ng1 {[%clk 0:00:09]}  Nd7 {[%clk 0:00:13]} 62. Nf3 {[%clk 0:00:07]}  Nb8 {[%clk 0:00:13]} 63. Kd3 {[%clk 0:00:07]}  Nxa6 {[%clk 0:00:14]} 64. Kc3 {[%clk 0:00:07]}  Nb8 {[%clk 0:00:14]} 65. Kd3 {[%clk 0:00:06]}  Nd7 {[%clk 0:00:15]} 66. Ke3 {[%clk 0:00:06]}  Nf8 {[%clk 0:00:15]} 67. Nd2 {[%clk 0:00:06]}  Ng6 {[%clk 0:00:15]} 68. Nb3 {[%clk 0:00:07]}  Nf4 {[%clk 0:00:15]} 69. Kf3 {[%clk 0:00:07]}  Nd3 {[%clk 0:00:14]} 70. Na5 {[%clk 0:00:07]}  Nxb4 {[%clk 0:00:15]} 71. Kf2 {[%clk 0:00:06]}  Kg6 {[%clk 0:00:15]} 72. Kf3 {[%clk 0:00:07]}  Kf7 {[%clk 0:00:15]} 73. Kf2 {[%clk 0:00:06]}  Ke7 {[%clk 0:00:16]} 74. Kf3 {[%clk 0:00:05]}  Kd7 {[%clk 0:00:16]} 75. Kf2 {[%clk 0:00:05]}  Nc2 {[%clk 0:00:17]} 76. Nb3 {[%clk 0:00:04]}  Kc7 {[%clk 0:00:17]} 77. Kf3 {[%clk 0:00:03]}  Kb7 {[%clk 0:00:17]} 78. Na5+ {[%clk 0:00:02]}  Kc7 {[%clk 0:00:17]} 79. Nb3 {[%clk 0:00:03]}  a5 {[%clk 0:00:15]} 80. Nxa5 {[%clk 0:00:03]}  Nxd4+ {[%clk 0:00:16]} 81. Kf2 {[%clk 0:00:03]}  b4 {[%clk 0:00:15]} 82. Ke3 {[%clk 0:00:03]}  h3 {[%clk 0:00:15]} 83. Kf2 {[%clk 0:00:03]}  b3 {[%clk 0:00:15]} 0-1


[Site "https://www.chess.com"]

[Event "Titled Tuesday Blitz November 15 Late 2022"]
[White "Kleiman, Jake"]
[Black "Adury, Anant"]
[WhiteFideId "2020041"]
[BlackFideId "30964687"]
[WhiteElo "2769"]
[BlackElo "2242"]
[Result "0-1"]
[Round "02"]
[TimeControl "180+1"]
[Date "2022.11.16"]
[WhiteClock "0:00:14"]
[BlackClock "0:00:05"]

1. e4 {[%clk 0:03:00]}  d6 {[%clk 0:02:53]} 2. d4 {[%clk 0:03:00]}  Nf6 {[%clk 0:02:53]} 3. Nc3 {[%clk 0:03:01]}  e5 {[%clk 0:02:54]} 4. Nf3 {[%clk 0:03:01]}  Nc6 {[%clk 0:02:54]} 5. Bc4 {[%clk 0:03:01]}  exd4 {[%clk 0:02:53]} 6. Nxd4 {[%clk 0:03:02]}  Be7 {[%clk 0:02:53]} 7. O-O {[%clk 0:03:01]}  O-O {[%clk 0:02:48]} 8. Nxc6 {[%clk 0:03:01]}  bxc6 {[%clk 0:02:44]} 9. Re1 {[%clk 0:03:02]}  a5 {[%clk 0:02:37]} 10. Bf4 {[%clk 0:03:01]}  Nd7 {[%clk 0:02:34]} 11. Rb1 {[%clk 0:02:57]}  Ne5 {[%clk 0:02:35]} 12. Bf1 {[%clk 0:02:52]}  Be6 {[%clk 0:02:25]} 13. b3 {[%clk 0:02:52]}  Bg5 {[%clk 0:02:22]} 14. Bg3 {[%clk 0:02:43]}  Qf6 {[%clk 0:02:05]} 15. Ne2 {[%clk 0:02:43]}  Bg4 {[%clk 0:01:47]} 16. f3 {[%clk 0:02:21]}  Bxf3 {[%clk 0:01:22]} 17. Bxe5 {[%clk 0:02:20]}  Be3+ {[%clk 0:00:45]} 18. Kh1 {[%clk 0:02:20]}  dxe5 {[%clk 0:00:30]} 19. Qd3 {[%clk 0:01:55]}  Bxe2 {[%clk 0:00:23]} 20. Qxe3 {[%clk 0:01:44]}  Bxf1 {[%clk 0:00:22]} 21. Rxf1 {[%clk 0:01:45]}  Qe6 {[%clk 0:00:19]} 22. a4 {[%clk 0:01:35]}  f6 {[%clk 0:00:19]} 23. Rbd1 {[%clk 0:01:32]}  Rfd8 {[%clk 0:00:19]} 24. Qc5 {[%clk 0:01:30]}  Rd6 {[%clk 0:00:15]} 25. h3 {[%clk 0:01:25]}  Qd7 {[%clk 0:00:13]} 26. Rde1 {[%clk 0:01:17]}  Qe6 {[%clk 0:00:14]} 27. Re2 {[%clk 0:01:14]}  Qc8 {[%clk 0:00:14]} 28. Rf3 {[%clk 0:01:06]}  Qa6 {[%clk 0:00:14]} 29. Ref2 {[%clk 0:01:02]}  Qb6 {[%clk 0:00:14]} 30. Qc4+ {[%clk 0:01:00]}  Kh8 {[%clk 0:00:14]} 31. Qf7 {[%clk 0:00:43]}  Rg8 {[%clk 0:00:10]} 32. Qh5 {[%clk 0:00:31]}  Qd4 {[%clk 0:00:03]} 33. Qh4 {[%clk 0:00:27]}  Qd1+ {[%clk 0:00:03]} 34. Kh2 {[%clk 0:00:28]}  Qc1 {[%clk 0:00:04]} 35. Rc3 {[%clk 0:00:18]}  Rd1 {[%clk 0:00:04]} 36. Qg4 {[%clk 0:00:15]}  Rh1+ {[%clk 0:00:04]} 37. Kg3 {[%clk 0:00:16]}  Qe1 {[%clk 0:00:04]} 38. Rf3 {[%clk 0:00:16]}  Rf1 {[%clk 0:00:04]} 39. Qh4 {[%clk 0:00:15]}  Rxf2 {[%clk 0:00:04]} 40. Rxf2 {[%clk 0:00:16]}  Qe3+ {[%clk 0:00:04]} 41. Kh2 {[%clk 0:00:15]}  Qc5 {[%clk 0:00:03]} 42. Qg3 {[%clk 0:00:14]}  Qd6 {[%clk 0:00:03]} 43. Qe3 {[%clk 0:00:13]}  Qd4 {[%clk 0:00:04]} 44. Qf3 {[%clk 0:00:13]}  c5 {[%clk 0:00:04]} 45. Re2 {[%clk 0:00:14]}  c4 {[%clk 0:00:05]} 46. c3 {[%clk 0:00:13]}  Qc5 {[%clk 0:00:04]} 47. bxc4 {[%clk 0:00:13]}  Qxc4 {[%clk 0:00:05]} 48. Rd2 {[%clk 0:00:13]}  Qxa4 {[%clk 0:00:05]} 49. Rd7 {[%clk 0:00:14]}  Qxd7 {[%clk 0:00:05]} 0-1


[Site "https://www.chess.com"]

[Event "Titled Tuesday Blitz November 15 Late 2022"]
[White "Kleinman, Michael"]
[Black "Krasteva, Beloslava"]
[WhiteFideId "2609479"]
[BlackFideId "2922029"]
[WhiteElo "2287"]
[BlackElo "2187"]
[Result "1-0"]
[Round "02"]
[TimeControl "180+1"]
[Date "2022.11.16"]
[WhiteClock "0:00:20"]
[BlackClock "0:00:02"]

1. e4 {[%clk 0:03:00]}  c5 {[%clk 0:02:35]} 2. Nf3 {[%clk 0:02:54]}  Nc6 {[%clk 0:02:35]} 3. Bb5 {[%clk 0:02:53]}  Nd4 {[%clk 0:02:29]} 4. Nxd4 {[%clk 0:02:51]}  cxd4 {[%clk 0:02:29]} 5. O-O {[%clk 0:02:52]}  a6 {[%clk 0:02:29]} 6. Bc4 {[%clk 0:02:51]}  e6 {[%clk 0:02:25]} 7. a4 {[%clk 0:02:50]}  Nf6 {[%clk 0:02:23]} 8. d3 {[%clk 0:02:50]}  d5 {[%clk 0:02:18]} 9. exd5 {[%clk 0:02:47]}  Nxd5 {[%clk 0:02:18]} 10. Nd2 {[%clk 0:02:47]}  Be7 {[%clk 0:02:18]} 11. Nf3 {[%clk 0:02:47]}  Nf6 {[%clk 0:01:57]} 12. Re1 {[%clk 0:02:45]}  O-O {[%clk 0:01:56]} 13. Bf4 {[%clk 0:02:41]}  b6 {[%clk 0:01:36]} 14. Be5 {[%clk 0:02:40]}  Bc5 {[%clk 0:01:34]} 15. Rb1 {[%clk 0:02:30]}  a5 {[%clk 0:01:30]} 16. c3 {[%clk 0:02:26]}  dxc3 {[%clk 0:01:20]} 17. bxc3 {[%clk 0:02:27]}  Ba6 {[%clk 0:01:15]} 18. Qb3 {[%clk 0:02:14]}  Bxc4 {[%clk 0:01:12]} 19. Qxc4 {[%clk 0:02:14]}  Rc8 {[%clk 0:01:12]} 20. Qf4 {[%clk 0:01:09]}  Nd5 {[%clk 0:01:10]} 21. Qg3 {[%clk 0:01:06]}  f6 {[%clk 0:01:09]} 22. Bd4 {[%clk 0:01:05]}  e5 {[%clk 0:01:05]} 23. Bxc5 {[%clk 0:01:01]}  Rxc5 {[%clk 0:01:04]} 24. d4 {[%clk 0:00:59]}  exd4 {[%clk 0:00:55]} 25. cxd4 {[%clk 0:00:58]}  Rc4 {[%clk 0:00:52]} 26. h4 {[%clk 0:00:51]}  Rxa4 {[%clk 0:00:50]} 27. h5 {[%clk 0:00:51]}  h6 {[%clk 0:00:46]} 28. Nh4 {[%clk 0:00:49]}  Rb4 {[%clk 0:00:39]} 29. Nf5 {[%clk 0:00:45]}  Qd7 {[%clk 0:00:35]} 30. Rxb4 {[%clk 0:00:40]}  Nxb4 {[%clk 0:00:30]} 31. Re7 {[%clk 0:00:37]}  Qxe7 {[%clk 0:00:08]} 32. Nxe7+ {[%clk 0:00:33]}  Kf7 {[%clk 0:00:09]} 33. Nf5 {[%clk 0:00:30]}  Ke6 {[%clk 0:00:07]} 34. Nxg7+ {[%clk 0:00:26]}  Kd5 {[%clk 0:00:07]} 35. Nf5 {[%clk 0:00:21]}  a4 {[%clk 0:00:02]} 36. Qd6+ {[%clk 0:00:21]}  Kc4 {[%clk 0:00:02]} 37. Qxf8 {[%clk 0:00:20]} 1-0


[Site "https://www.chess.com"]

[Event "Titled Tuesday Blitz November 15 Late 2022"]
[White "Kollars, Dmitrij"]
[Black "Mr_Penings"]
[WhiteFideId "12909572"]
[WhiteElo "2584"]
[BlackElo "2669"]
[Result "1-0"]
[Round "02"]
[TimeControl "180+1"]
[Date "2022.11.15"]
[WhiteClock "0:00:26"]
[BlackClock "0:00:08"]

1. c4 {[%clk 0:03:00]}  Nf6 {[%clk 0:02:57]} 2. Nc3 {[%clk 0:03:00]}  e5 {[%clk 0:02:56]} 3. Nf3 {[%clk 0:03:00]}  d6 {[%clk 0:02:57]} 4. d4 {[%clk 0:03:00]}  Nbd7 {[%clk 0:02:57]} 5. e4 {[%clk 0:03:00]}  g6 {[%clk 0:02:58]} 6. Be2 {[%clk 0:02:59]}  Bg7 {[%clk 0:02:58]} 7. O-O {[%clk 0:03:00]}  O-O {[%clk 0:02:58]} 8. Qc2 {[%clk 0:02:54]}  c6 {[%clk 0:02:57]} 9. Be3 {[%clk 0:02:47]}  Qe7 {[%clk 0:02:57]} 10. Rfe1 {[%clk 0:02:43]}  h6 {[%clk 0:02:57]} 11. h3 {[%clk 0:02:43]}  exd4 {[%clk 0:02:55]} 12. Nxd4 {[%clk 0:02:38]}  Nc5 {[%clk 0:02:55]} 13. Bf3 {[%clk 0:02:33]}  a5 {[%clk 0:02:53]} 14. Rad1 {[%clk 0:02:33]}  Nfd7 {[%clk 0:02:52]} 15. Nb3 {[%clk 0:02:27]}  Ne5 {[%clk 0:02:50]} 16. Be2 {[%clk 0:02:27]}  g5 {[%clk 0:02:37]} 17. Nxc5 {[%clk 0:02:11]}  dxc5 {[%clk 0:02:36]} 18. Na4 {[%clk 0:02:11]}  Nd7 {[%clk 0:02:29]} 19. Bg4 {[%clk 0:02:09]}  Re8 {[%clk 0:01:57]} 20. Bxd7 {[%clk 0:02:01]}  Bxd7 {[%clk 0:01:58]} 21. Bxc5 {[%clk 0:02:02]}  Qe6 {[%clk 0:01:52]} 22. Rd6 {[%clk 0:01:59]}  Qe7 {[%clk 0:01:27]} 23. Nb6 {[%clk 0:01:49]}  Rad8 {[%clk 0:01:20]} 24. Red1 {[%clk 0:01:48]}  Rf8 {[%clk 0:00:51]} 25. R6d5 {[%clk 0:01:31]}  Qe6 {[%clk 0:00:25]} 26. Rxd7 {[%clk 0:01:26]}  Rxd7 {[%clk 0:00:26]} 27. Rxd7 {[%clk 0:01:21]}  Re8 {[%clk 0:00:24]} 28. Qd3 {[%clk 0:01:18]}  Qe5 {[%clk 0:00:16]} 29. Rd8 {[%clk 0:01:12]}  Rxd8 {[%clk 0:00:14]} 30. Qxd8+ {[%clk 0:01:13]}  Kh7 {[%clk 0:00:15]} 31. Qe7 {[%clk 0:00:36]}  Qf4 {[%clk 0:00:14]} 32. g3 {[%clk 0:00:34]}  Qc1+ {[%clk 0:00:13]} 33. Kg2 {[%clk 0:00:34]}  Qc2 {[%clk 0:00:10]} 34. b3 {[%clk 0:00:28]}  Qxa2 {[%clk 0:00:08]} 35. Qxf7 {[%clk 0:00:26]}  Qxb3 {[%clk 0:00:08]} 36. Bd4 {[%clk 0:00:26]} 1-0


[Site "https://www.chess.com"]

[Event "Titled Tuesday Blitz November 15 Late 2022"]
[White "Korchmar, Vasiliy"]
[Black "Burke, Paul"]
[WhiteFideId "24131750"]
[BlackFideId "2605767"]
[WhiteElo "2370"]
[BlackElo "1809"]
[Result "1-0"]
[Round "02"]
[TimeControl "180+1"]
[Date "2022.11.16"]
[WhiteClock "0:00:29"]
[BlackClock "0:00:10"]

1. e4 {[%clk 0:03:00]}  e5 {[%clk 0:02:59]} 2. Nf3 {[%clk 0:03:00]}  Nc6 {[%clk 0:02:59]} 3. Bc4 {[%clk 0:03:01]}  Be7 {[%clk 0:02:59]} 4. Nc3 {[%clk 0:02:56]}  Nf6 {[%clk 0:02:59]} 5. d3 {[%clk 0:02:55]}  O-O {[%clk 0:02:59]} 6. O-O {[%clk 0:02:54]}  d6 {[%clk 0:02:59]} 7. a4 {[%clk 0:02:54]}  Bg4 {[%clk 0:02:59]} 8. h3 {[%clk 0:02:52]}  Bh5 {[%clk 0:02:58]} 9. Be3 {[%clk 0:02:47]}  Qd7 {[%clk 0:02:55]} 10. a5 {[%clk 0:02:39]}  Kh8 {[%clk 0:02:51]} 11. a6 {[%clk 0:02:38]}  bxa6 {[%clk 0:02:38]} 12. Rxa6 {[%clk 0:02:37]}  Nd4 {[%clk 0:02:37]} 13. Bxd4 {[%clk 0:02:36]}  exd4 {[%clk 0:02:37]} 14. Nb1 {[%clk 0:02:32]}  c6 {[%clk 0:02:18]} 15. Nbd2 {[%clk 0:02:20]}  Qb7 {[%clk 0:02:06]} 16. Qa1 {[%clk 0:02:15]}  d5 {[%clk 0:01:41]} 17. exd5 {[%clk 0:02:14]}  cxd5 {[%clk 0:01:39]} 18. Bb3 {[%clk 0:02:12]}  Bb4 {[%clk 0:01:35]} 19. Qa4 {[%clk 0:01:56]}  Bxd2 {[%clk 0:01:27]} 20. Nxd2 {[%clk 0:01:55]}  Rfe8 {[%clk 0:01:25]} 21. Rxf6 {[%clk 0:01:49]}  gxf6 {[%clk 0:01:23]} 22. Qxd4 {[%clk 0:01:50]}  Qe7 {[%clk 0:01:14]} 23. Bxd5 {[%clk 0:01:32]}  Rad8 {[%clk 0:01:14]} 24. c4 {[%clk 0:01:28]}  Bg6 {[%clk 0:01:00]} 25. Nf3 {[%clk 0:01:24]}  Qd6 {[%clk 0:00:48]} 26. Ra1 {[%clk 0:01:15]}  a6 {[%clk 0:00:47]} 27. b4 {[%clk 0:01:07]}  Kg7 {[%clk 0:00:45]} 28. Qc3 {[%clk 0:01:01]}  Re2 {[%clk 0:00:34]} 29. Nd4 {[%clk 0:00:57]}  Ree8 {[%clk 0:00:24]} 30. Bc6 {[%clk 0:00:32]}  Re7 {[%clk 0:00:12]} 31. Bd5 {[%clk 0:00:32]}  Ree8 {[%clk 0:00:11]} 32. Qd2 {[%clk 0:00:30]}  Re7 {[%clk 0:00:10]} 33. Nc6 {[%clk 0:00:29]} 1-0


[Site "https://www.chess.com"]

[Event "Titled Tuesday Blitz November 15 Late 2022"]
[White "Kosakowski, Jakub"]
[Black "Khandelwal, Ankush"]
[WhiteFideId "1185080"]
[BlackFideId "413470"]
[WhiteElo "2463"]
[BlackElo "2271"]
[Result "1/2-1/2"]
[Round "02"]
[TimeControl "180+1"]
[Date "2022.11.16"]
[WhiteClock "0:00:24"]
[BlackClock "0:00:10"]

1. e4 {[%clk 0:02:54]}  c5 {[%clk 0:02:58]} 2. Nf3 {[%clk 0:02:54]}  d6 {[%clk 0:02:59]} 3. Bb5+ {[%clk 0:02:54]}  Nd7 {[%clk 0:02:58]} 4. Be2 {[%clk 0:02:52]}  Ngf6 {[%clk 0:02:57]} 5. Nc3 {[%clk 0:02:52]}  g6 {[%clk 0:02:57]} 6. d4 {[%clk 0:02:51]}  cxd4 {[%clk 0:02:56]} 7. Qxd4 {[%clk 0:02:51]}  Bg7 {[%clk 0:02:56]} 8. Bg5 {[%clk 0:02:50]}  O-O {[%clk 0:02:52]} 9. Qe3 {[%clk 0:02:51]}  a6 {[%clk 0:02:49]} 10. O-O-O {[%clk 0:02:50]}  b5 {[%clk 0:02:48]} 11. h3 {[%clk 0:02:46]}  b4 {[%clk 0:02:46]} 12. Nd5 {[%clk 0:02:43]}  Nxd5 {[%clk 0:02:32]} 13. exd5 {[%clk 0:02:43]}  Qa5 {[%clk 0:02:28]} 14. Kb1 {[%clk 0:02:41]}  Nf6 {[%clk 0:02:28]} 15. Bc4 {[%clk 0:02:17]}  Bb7 {[%clk 0:02:24]} 16. Bh6 {[%clk 0:02:18]}  Bxd5 {[%clk 0:02:06]} 17. Bxg7 {[%clk 0:02:14]}  Bxc4 {[%clk 0:01:45]} 18. Bxf8 {[%clk 0:01:59]}  Qxa2+ {[%clk 0:01:38]} 19. Kc1 {[%clk 0:01:59]}  Rxf8 {[%clk 0:01:38]} 20. b3 {[%clk 0:01:57]}  Bd5 {[%clk 0:01:09]} 21. Qd4 {[%clk 0:01:32]}  Rc8 {[%clk 0:01:05]} 22. Qb2 {[%clk 0:01:28]}  Qxb3 {[%clk 0:00:40]} 23. Qxb3 {[%clk 0:01:15]}  Bxb3 {[%clk 0:00:40]} 24. Nd4 {[%clk 0:01:16]}  Bxc2 {[%clk 0:00:40]} 25. Nxc2 {[%clk 0:01:13]}  b3 {[%clk 0:00:41]} 26. Rd2 {[%clk 0:01:11]}  Ne4 {[%clk 0:00:37]} 27. Re2 {[%clk 0:01:12]}  Nc3 {[%clk 0:00:37]} 28. Rd2 {[%clk 0:01:08]}  bxc2 {[%clk 0:00:30]} 29. Rxc2 {[%clk 0:01:06]}  Rc5 {[%clk 0:00:27]} 30. Kb2 {[%clk 0:01:03]}  Na4+ {[%clk 0:00:27]} 31. Kb3 {[%clk 0:01:03]}  Rxc2 {[%clk 0:00:25]} 32. Kxc2 {[%clk 0:01:04]}  Nc5 {[%clk 0:00:26]} 33. Rb1 {[%clk 0:01:03]}  f5 {[%clk 0:00:25]} 34. Rb8+ {[%clk 0:00:57]}  Kf7 {[%clk 0:00:26]} 35. Kc3 {[%clk 0:00:57]}  Ne4+ {[%clk 0:00:22]} 36. Kd4 {[%clk 0:00:55]}  Nxf2 {[%clk 0:00:23]} 37. Ra8 {[%clk 0:00:56]}  Ne4 {[%clk 0:00:21]} 38. Rxa6 {[%clk 0:00:56]}  e5+ {[%clk 0:00:20]} 39. Ke3 {[%clk 0:00:56]}  Kf6 {[%clk 0:00:21]} 40. Ra7 {[%clk 0:00:54]}  h6 {[%clk 0:00:20]} 41. Rh7 {[%clk 0:00:53]}  Kg5 {[%clk 0:00:19]} 42. Rd7 {[%clk 0:00:54]}  Kh5 {[%clk 0:00:17]} 43. Kf3 {[%clk 0:00:52]}  Ng5+ {[%clk 0:00:17]} 44. Kg3 {[%clk 0:00:51]}  Ne4+ {[%clk 0:00:17]} 45. Kf3 {[%clk 0:00:52]}  Kg5 {[%clk 0:00:17]} 46. Rf7 {[%clk 0:00:51]}  d5 {[%clk 0:00:16]} 47. g3 {[%clk 0:00:51]}  d4 {[%clk 0:00:16]} 48. h4+ {[%clk 0:00:51]}  Kh5 {[%clk 0:00:17]} 49. Rh7 {[%clk 0:00:41]}  Nf6 {[%clk 0:00:16]} 50. Rf7 {[%clk 0:00:41]}  e4+ {[%clk 0:00:16]} 51. Kg2 {[%clk 0:00:40]}  Ng4 {[%clk 0:00:16]} 52. Rd7 {[%clk 0:00:36]}  d3 {[%clk 0:00:16]} 53. Rd6 {[%clk 0:00:32]}  Ne3+ {[%clk 0:00:16]} 54. Kh3 {[%clk 0:00:32]}  Nc4 {[%clk 0:00:15]} 55. Rd5 {[%clk 0:00:31]}  Ne3 {[%clk 0:00:12]} 56. Rd6 {[%clk 0:00:31]}  Ng4 {[%clk 0:00:12]} 57. Kg2 {[%clk 0:00:27]}  Ne5 {[%clk 0:00:10]} 58. Rd5 {[%clk 0:00:26]}  Ng4 {[%clk 0:00:10]} 59. Rd6 {[%clk 0:00:24]} 1/2-1/2


[Site "https://www.chess.com"]